Cogmind - Beta 16 @@@ ROGUE MODE // 2025.10.27 @ 08:43:49 Player: Thqwib-Linux Result: Destroyed by 0Z-DNU(R) with Subdweller Machine Gun Performance ------------- Evolutions (0) 0 Regions Visited (2) 400 Robots Destroyed (27) 135 Value Destroyed (754) 754 Prototype IDs (2) 40 Alien Tech Used (0) 0 Bonus (0) 0 TOTAL SCORE: 1329 Bonus ------- None Cogmind --------- Core Integrity 0/250 Matter 300/300 Energy 98/100 System Corruption 5% Temperature Cool (0) Movement Core (50) Location -10/Subcaves Parts ------- > --- POWER (1) -------- (None) > --- PROPULSION (2) --- (None) > --- UTILITY (2) ------ (None) > --- WEAPON (2) ------- (None) > --- INVENTORY (5) ---- Structural Scanner Machine Analyzer Light Armor Plating Medium Laser Assault Rifle Peak State ------------ > --- POWER ------------ Subdweller Power Source > --- PROPULSION ------- Aluminum Leg Aluminum Leg > --- UTILITY ---------- Disposable Heat Sink Medium Storage Unit > --- WEAPON ----------- Small Laser Subdweller Machine Gun > --- INVENTORY -------- Improved Ion Engine Structural Scanner Machine Analyzer Light Armor Plating Medium Laser Small Laser Assault Rifle Grenade Launcher [Rating: 11] Favorites ----------- Power Improved Ion Engine Engine Improved Ion Engine Propulsion Aluminum Leg Leg Aluminum Leg Utility Heat Sink Device Heat Sink Storage Small Storage Unit Protection Light Armor Plating Weapon Small Laser Energy Gun Small Laser Ballistic Gun Assault Rifle Build | -11 -10 -10 ------- Run | Yrd Mat Sub Slots Evolved . | . . . Power . | . . . Propulsion . | . . . Utility . | . . . Weapon . | . . . Parts Attached 26 | . 21 5 Power 7 | . 5 2 Engine 7 | . 5 2 Core . | . . . Reactor . | . . . Propulsion 7 | . 7 . Treads . | . . . Leg 7 | . 7 . Wheel . | . . . Hover . | . . . Flight . | . . . Utility 5 | . 3 2 Device 3 | . 2 1 Storage 1 | . 1 . Processor . | . . . Hackware . | . . . Protection 1 | . . 1 Artifact . | . . . Weapon 7 | . 6 1 Energy Gun 5 | . 5 . Energy Cannon . | . . . Ballistic Gun 2 | . 1 1 Ballistic Cannon . | . . . Launcher . | . . . Special Weapon . | . . . Impact Weapon . | . . . Slashing Weapon . | . . . Piercing Weapon . | . . . Special Melee Weapon . | . . . Unidentified Prototypes . | . . . Parts Lost 5 | . 2 3 Power 3 | . 2 1 Propulsion 2 | . . 2 Utility . | . . . Weapon . | . . . Highest Loss Streak 3 | . 1 3 To Critical Strikes 1 | . . 1 Average Backups 6 | 5 5 7 Power . | 1 . . Propulsion . | 3 . . Utility 1 | . 1 2 Weapon 3 | 1 3 4 Tool/Special . | . . . Unused Backups 13 | . 7 6 Power 2 | . 2 . Propulsion 1 | . 1 . Utility 3 | . 1 2 Weapon 7 | . 3 4 Tool/Special . | . . . Average Slot Usage (%) 90 | . 97 78 Engine 12 | . 12 11 Leg 26 | . 27 23 Device 12 | . 13 11 Storage 13 | . 14 11 Energy Gun 15 | . 18 10 Ballistic Gun 8 | . 9 8 Peak Build Rating 11 | 6 9 11 Average Rating 7 | 6 7 8 On Entrance 6 | 6 6 8 Avg Prop Armor Cover (%) . | . . . Naked Turns 121 | . . 121 Heaviest Build 23 | 12 21 23 Greatest Support 20 | 20 20 20 Greatest Overweight (x) 1 | . 1 1 Average Overweight (x) . | . . . Largest Inventory Capacity 10 | 8 10 10 Average Capacity 8 | 8 8 9 Most Carried 10 | 5 8 10 Average Carried 6 | 3 5 7 Final Capacity 10 | 8 10 5 Final Carried 7 | 2 7 5 Class Distribution -------------------- 56% | Mutant 43% | Scavenger-Mutant Dominant Class ---------------- Mutant | -10/Materials Scavenger-Mutant | -10/Subcaves Resources | -11 -10 -10 ----------- Run | Yrd Mat Sub Matter Collected 737 | 200 327 210 Remotely . | . . . Salvage Created 958 | . 771 187 Parts 53 | . 36 17 Haulers Intercepted 1 | . 1 . Recyclers Shooed 1 | . 1 . Parts Field Recycled . | . . . Retrieved Matter . | . . . Parts Self-Destructed 6 | . . 6 Prevented . | . . . Parts Restored . | . . . Kills | -11 -10 -10 ------- Run | Yrd Mat Sub Combat Hostiles Destroyed 24 | . 17 7 Guns 24 | . 17 7 Classes Destroyed 6 | . 5 1 Worker 1 | . 1 . Hauler 1 | . 1 . Watcher 1 | . 1 . Swarmer 6 | . 3 3 Grunt 14 | . 14 . Subdweller 4 | . . 4 Best Kill Streak 4 | . 4 3 Combat Bots Only 4 | . 4 3 Max Kills in Single Turn 2 | . 1 2 Gunslinging . | . . . Exploded . | . . . Melee . | . . . Uniques/NPCs Destroyed . | . . . Combat | -11 -10 -10 -------- Run | Yrd Mat Sub Hostile Shots Fired 124 | . 81 43 Missed 29 | . 16 13 Hits 95 | . 65 30 Projectile 95 | . 65 30 Critical Strikes 2 | . 1 1 Damage Taken 1343 | . 771 572 Core 256 | . 106 150 Absorbed by Shields . | . . . Regen/Repaired (Parts) 78 | . 78 . Core Remaining (%) 100 | 100 . . Volleys Fired 103 | . 77 26 Largest 2 | . 2 2 Hottest 90 | . 90 80 Shots Fired 197 | . 154 43 Gun 197 | . 154 43 Cannon . | . . . Launcher . | . . . Special . | . . . Kinetic 78 | . 66 12 Thermal 119 | . 88 31 Explosive . | . . . Electromagnetic . | . . . Robot Hit Streak 14 | . 12 14 Robot Miss Streak 4 | . 4 4 Penetration Max . | . . . Secondary Targets 1 | . . 1 Max Gunslinging Chain 1 | . . 1 Shots Hit Robots 134 | . 102 32 Core Hits 51 | . 38 13 Critical Kills . | . . . Critical Parts Destroyed 1 | . 1 . Critical Strikes 2 | . 2 . Burn 1 | . 1 . Destroy 1 | . 1 . Melee Attacks . | . . . Impact . | . . . Slashing . | . . . Piercing . | . . . Sneak Attacks . | . . . Combat Hostiles . | . . . Follow-up Attacks . | . . . Damage Inflicted 1644 | . 1213 431 Guns 1637 | . 1206 431 Cannons . | . . . Explosions . | . . . Melee . | . . . Ramming 7 | . 7 . Kinetic 756 | . 537 219 Thermal 881 | . 669 212 Explosive . | . . . Electromagnetic . | . . . Impact . | . . . Slashing . | . . . Piercing . | . . . Highest Corruption 5 | . 5 5 Average Corruption 3 | . 3 5 Corruption Purged . | . . . Corruption Blocked . | . . . Effects 40 | . 21 19 Message Errors 12 | . 7 5 Matter Fused 8 | . 5 3 Heat Flow Errors 2 | . 1 1 Energy Discharges 5 | . 2 3 Data Loss (minor) 5 | . 3 2 Data Loss (major) 4 | . . 4 Alerts 3 | . 3 . Weapon Failures 1 | . . 1 Overload Shots . | . . . Overflow Damage . | . . . Projectiles . | . . . Explosions . | . . . Melee . | . . . Knockbacks . | . . . Impact . | . . . Kinetic . | . . . Secondary . | . . . Self-Inflicted Damage . | . . . Shots . | . . . Rammed . | . . . Targets Rammed 1 | . 1 . Kicked 1 | . 1 . Crushed . | . . . Highest Temperature 219 | . 98 219 Average Temperature 21 | . 12 133 Received Heat Transfer 492 | . 426 66 Siege Activations . | . . . Martial Activations . | . . . Shielding Activations . | . . . Robots Disrupted . | . . . Combat Hostiles . | . . . Robots Corrupted . | . . . Combat Hostiles . | . . . Parts Fried . | . . . Impact Corruptions . | . . . Robots Melted . | . . . Combat Hostiles . | . . . Parts Melted 6 | . 5 1 Heat Transferred 2442 | . 1942 500 Parts Sabotaged . | . . . Parts Stolen . | . . . Parts Stripped . | . . . Power Chain Reactions . | . . . Alert | -11 -10 -10 ------- Run | Yrd Mat Sub Maximum Alert Level . | . . . Low Security (%) 100 | 100 100 . Level 1 . | . . . Level 2 . | . . . Level 3 . | . . . Level 4 . | . . . Level 5 . | . . . High Security . | . . . Max Security . | . . . Peak Influence 178 | . 178 . Initial . | . . . Average 35 | . 35 . Influence Increases 587 | . 517 70 Destroy 0b10 Robot/C 400 | . 340 60 Destroy 0b10 Robot/NC 15 | . 15 . Destroy Leader 84 | . 74 10 Successful Hack 40 | . 40 . Select Force Hacks 30 | . 30 . Destroy Structure 3 | . 3 . Lose Combat Pursuer 15 | . 15 . Influence Decreases 587 | . 517 70 Time Decay 417 | . 347 70 Lost Part 20 | . 20 . Purge Threat 150 | . 150 . Squads Dispatched 4 | . 4 . Investigation 3 | . 3 . Extermination . | . . . Reinforcement 1 | . 1 . Assault . | . . . Garrison . | . . . Intercept . | . . . Searches Triggered . | . . . Construction Impeded . | . . . Haulers Reinforced . | . . . Active Scanning Responses . | . . . Cargo Convoy Interrupts . | . . . Stealth | -11 -10 -10 --------- Run | Yrd Mat Sub Distress Signals 2 | . 2 . Communications Jammed . | . . . Distress Signals . | . . . Times Spotted 34 | . 25 9 Peak Tracking Total 5 | . 5 3 Tactical Retreats 2 | . 1 1 Traps | -11 -10 -10 ------- Run | Yrd Mat Sub Traps Triggered 5 | . 5 . Indirectly . | . . . Trap Hack Attempts . | . . . Triggered . | . . . Disarmed . | . . . Reprogrammed . | . . . Reused . | . . . Traps Extracted . | . . . Installed . | . . . Triggered . | . . . Machines | -11 -10 -10 ---------- Run | Yrd Mat Sub Machines Disabled . | . . . Max in Single Turn . | . . . Machines Repaired . | . . . Machines Dismantled . | . . . Machines Sabotaged . | . . . Overloaded Fab Kills . | . . . Hacking | -11 -10 -10 --------- Run | Yrd Mat Sub Machines Accessed 8 | . 8 . Terminals 6 | . 6 . Fabricators . | . . . Repair Stations 1 | . 1 . Recycling Units 1 | . 1 . Scanalyzers . | . . . Garrison Access . | . . . Total Hacks 18 | . 18 . Successful 13 | . 13 . Failed 5 | . 5 . Catastrophic . | . . . Database Lockouts . | . . . Manual 8 | . 8 . Terminals 13 | . 13 . Fabricators . | . . . Repair Stations 4 | . 4 . Recycling Units 1 | . 1 . Scanalyzers . | . . . Garrison Access . | . . . Terminal Hacks 5 | . 5 . Prototype ID Bank 1 | . 1 . Terminal Index 1 | . 1 . Unreport Threat 1 | . 1 . Dispatch Records 1 | . 1 . Zone Layout 1 | . 1 . Fabricator Hacks . | . . . Repair Station Hacks 4 | . 4 . Scan Component 2 | . 2 . Repair 2 | . 2 . Recycling Unit Hacks . | . . . Scanalyzer . | . . . Garrison Access Hacks . | . . . Unauthorized Hacks 4 | . 4 . Terminals 3 | . 3 . Botnet 3 | . 3 . Fabricators . | . . . Repair Stations . | . . . Recycling Units 1 | . 1 . Tunnel 1 | . 1 . Scanalyzers . | . . . Garrison Access . | . . . Data Cores Recovered . | . . . Used . | . . . Hacking Detections 6 | . 6 . Full Trace Events 1 | . 1 . Feedback Events . | . . . Feedback Blocked . | . . . Robot Schematics Acquired . | . . . Robots Built . | . . . Authchips . | . . . Time . | . . . Total Robot Build Rating . | . . . Part Schematics Acquired . | . . . Parts Built . | . . . Authchips . | . . . Time . | . . . Total Part Build Rating . | . . . Part Studies Acquired . | . . . Parts Repaired 2 | . 2 . Time 58 | . 58 . Parts Recycled . | . . . Recycled Matter . | . . . Retrieved Matter . | . . . Retrieved Components . | . . . Parts Scanalyzed . | . . . Part Schematics Acquired . | . . . Parts Damaged . | . . . Bothacking | -11 -10 -10 ------------ Run | Yrd Mat Sub Used RIF Installer . | . . . Robots Hacked . | . . . Non-combat . | . . . Combat . | . . . Robot Hacks Applied . | . . . Relay Couplers Released . | . . . Fabnet Peak Effective % . | . . . Robots Rewired . | . . . Allies Hacked . | . . . Hacks Repelled . | . . . Allies | -11 -10 -10 -------- Run | Yrd Mat Sub Total Allies . | . . . Largest Group . | . . . Highest-Rated Group . | . . . Highest-Rated Ally . | . . . Total Orders . | . . . Ally Attacks . | . . . Total Damage . | . . . Kills . | . . . Allies Corrupted . | . . . Allies Melted . | . . . Intel | -11 -10 -10 ------- Run | Yrd Mat Sub Active Infowar (turns) . | . . . Robot Analysis Total . | . . . Derelict Logs Recovered . | . . . Drone Launches . | . . . Drone Recoveries . | . . . Exploration | -11 -10 -10 ------------- Run | Yrd Mat Sub Turns Passed 2245 | 3 1481 761 Spaces Moved 1529 | 1 881 647 Core 241 | . . 241 Treads . | . . . Legs 1288 | 1 881 406 Wheels . | . . . Hover . | . . . Flight . | . . . Fastest Speed 50 | 120 120 50 Average Speed 115 | 120 126 100 Slowest Speed 190 | 120 190 190 Overloaded Moves . | . . . Propulsion Burnouts . | . . . Robots Hopped . | . . . Potential Cave-ins . | . . . Cave-ins Triggered . | . . . Exploration Rate (%) 48 | 2 92 51 Regions Visited 2 Branch Regions 1 Pre-discovered Areas 2 | . 1 1 Known Exits Taken . | . . . Unknown Exits Taken 2 | 1 1 . Scrap Searched 2 | . . 2 Spaces Dug . | . . . Terrain Destroyed . | . . . Melee . | . . . Projectile . | . . . AOE . | . . . Terrain Rammed . | . . . Walls Destroyed . | . . . Machines Disabled . | . . . Actions | -11 -10 -10 --------- Run | Yrd Mat Sub Total 1811 | 4 1093 714 Wait 108 | . 85 23 Move 1527 | . 880 647 Hop . | . . . Pick Up 14 | . 9 5 Fast Attach 8 | . 5 3 Attach 4 | . 2 2 Detach . | . . . Swap 18 | . 17 1 Drop 28 | 4 17 7 Fire 103 | . 77 26 Melee . | . . . Ram . | . . . Kick 1 | . 1 . Crush . | . . . Escape Stasis . | . . . Rewire . | . . . Trap . | . . . Miscellaneous . | . . . Route ------- -11/Scrapyard -10/Materials (discovered 5 exits: [*Mat x3] / [*Min] / [*Sub]) -10/Subcaves (discovered 1 exit: [*Mat]) History --------- Turn | Location | Event 4 | -11/Scrapyard | Discovered new exit (range 0) 4 | -11/Scrapyard | Entered Materials 190 | -10/Materials | Discovered new exit (range 7) 203 | -10/Materials | Discovered new exit (range 13) 313 | -10/Materials | Repaired Aluminum Leg 334 | -10/Materials | Build established: Mutant 697 | -10/Materials | Discovered new exit (range 3) 942 | -10/Materials | Repaired Imp. Ion Engine 958 | -10/Materials | Build established: Scavenger-Mutant 1024 | -10/Materials | Discovered new exit (range 16) 1255 | -10/Materials | Discovered new exit (range 7) 1305 | -10/Materials | Build established: Mutant 1485 | -10/Materials | Entered Subcaves 1486 | -10/Subcaves | Approached by a straggling Scientist 1492 | -10/Subcaves | Discovered new exit (range 11) 1652 | -10/Subcaves | Core integrity fell below 50% 1771 | -10/Subcaves | Build established: Scavenger-Mutant 1915 | -10/Subcaves | A swath of the cavern ceiling suddenly collapsed 2115 | -10/Subcaves | Core integrity fell below 20% 2125 | -10/Subcaves | Released all parts (4) 2153 | -10/Subcaves | Lost 3 parts (1p2n) 2214 | -10/Subcaves | Learned location of Zion (-7) 2214 | -10/Subcaves | Met a Zionite searching for "candidates" 2246 | -10/Subcaves | Destroyed by 0Z-DNU(R) with Subdweller Machine Gun Last Messages --------------- 02118_ Critical hit (Destroy). 02118_ Sub. Power Source destroyed. 02122_ Aluminum Leg destroyed. 02123_ HR-CGO(R) destroyed. 02125_ Released Med. Storage Unit. 02125_ Released Sub. Machine Gun. 02125_ Released Sub. Power Source. 02125_ Released Lgt. Armor Plating. 02125_ Dropped Sml. Laser. 02126_ Acquired Lgt. Armor Plating. 02128_ Acquired 26 matter. 02131_ OWDLFICURBVWE8 02213_ 41-B5V(z): "She is not going to be happy we haven't found any suitable candidates yet." 02214_ 41-B5V(z): "Hey you! It's really dangerous down here, I feel that you could die at any moment. For your health and safety might I suggest a trip to Zion?" World map updated: -7/Zion. Map ----- +----------------------------------------------------+ | ???????????????????????????# ## | | ??????????????????????????# ## ## ##? | | ??????????????????????????## ### ##?###?? | | ???????????????????????????######?####??????? | | ????????????????????????????????????????????? | | ????????????????????????????????????????????? | | ????????????????????????????????????????????? | | ????????????????????????????????????????????? | | ????????????????????????????????????????????? | | ????????????????????????????????????????????? | | ????????????????????????????????????????????? | | ????????????????????????????????????????????? | | ????????????????????????????????????????????? | | ????????????????????????????????????????????? | | ????????????????????????????????????????????? | | ????????????????????????????????????????????? | | ????????????????????????????????????????????? | | ??????????????????????###?????####??????????? | | ???????????????????### ##???# ???????????? | | ?????????????????### ##?# #???????????? | | ????????????????## ## #????????????? | | ???????????????## #?????????????? | | ???????????????# #??????????????? | | ??????????????## #? ##??####" ??????? | | ??????????????? ### ### ""??????? | | ??????????????????# @ ## "??????? | | ??????????????????# "??????? | | ??????????????????# #?????????????? | | ?????????????????## ##?????????????? | | ????????????????## R##??????????????? | | ???????????????## ### ##??##???????????? | | ???????????????# #?# #??? ###?????????? | | ???????????????# #### #### "###???????? | | ???????????????## #?## ## ###?????? | | ????????????????# #?## ##????? | | ????????????????## #?# #????? | | ????????????????## #?# #????? | | ????????????????# #?## ####????? | | ????????????????# #??### ##???????? | | ???????????????## #????# #????????? | | ???????????????# #????# ##????????? | | ???????????????# #????# #?????????? | | ???????????????# ##???# #?????????? | | ??????????????## ## ###?### #?##??????? | | ??????????????# #### #?## ## ##?????? | | ??????????????# ##?### #?# ##????? | | ??????????????# ########?# #????? | | ??????????????## #?????## #????? | | ???????????????## #?????## #????? | | ????????????????## #????## ##### #????? | +----------------------------------------------------+ Best States ------------- Heat Dissipation 35 Coolant Potential 50 Energy Generation 15 Energy Capacity 265 Matter Stores 300 Matter Capacity 300 Sight Range 16 Terrain Scan Density 10 Armor Coverage 150 Evasion (%) 55 Item Schematics ----------------- None Robot Schematics ------------------ None Fabricated ------------ Nothing Repaired ---------- Aluminum Leg | 63% | -10/Materials Imp. Ion Engine | 35% | -10/Materials Studied --------- None Alien Tech Used ----------------- None Achievements -------------- None Challenges ------------ None Game ------ Seed AssemblyChargeTelecube Manual? 0 Play Time 00:19:26 Cumulative 7.9 hours Start 2025.10.27 @ 08:23:04 End 2025.10.27 @ 08:43:49 Sessions 1 Manual Loads 0 Difficulty Rogue Special Mode None Game No. 14 Rogue 14 Adventurer 0 Explorer 0 Win Type - Total 0 Types 0/0/0/0/0/0/0/0/0/0 Lore% 31 Gallery% 21 Achievement% 20 Wizard Run 0 Options --------- Layout 0 ASCII 0 Keyboard 0 Movement Arrows Keybinds 0 Fullscreen 2 Font 18/X11 Map View 76x50 Zoom Use 0% Tactical HUD 1 Map Filters NONE Filters NONE Steam 1 RUN: 277caf53-b850-48d6-9024-1c8d0908b433